[Event "Titled Tuesday Blitz June 6 Late 2023"]
[White "Martinez Alcantara, Jose Eduardo"]
[Black "Elsa167"]
[WhiteFideId "3805662"]
[WhiteElo "2711"]
[BlackElo "2884"]
[Result "1-0"]
[Round "7"]
[TimeControl "180+2"]
[Date "2023.06.07"]
[WhiteClock "0:01:14"]
[BlackClock "0:00:15"]
[Board "14"]

1. e4 {[%clk 0:03:00]}  e6 {[%clk 0:03:00]} 2. d4 {[%clk 0:03:01]}  d5 {[%clk 0:03:01]} 3. Nd2 {[%clk 0:03:01]}  Nf6 {[%clk 0:02:59]} 4. e5 {[%clk 0:03:01]}  Nfd7 {[%clk 0:03:00]} 5. c3 {[%clk 0:03:02]}  c5 {[%clk 0:03:01]} 6. Ndf3 {[%clk 0:03:02]}  Be7 {[%clk 0:02:58]} 7. Bd3 {[%clk 0:03:02]}  b6 {[%clk 0:02:54]} 8. Ne2 {[%clk 0:03:01]}  Ba6 {[%clk 0:02:53]} 9. Bxa6 {[%clk 0:03:01]}  Nxa6 {[%clk 0:02:54]} 10. O-O {[%clk 0:03:01]}  Nab8 {[%clk 0:02:53]} 11. Nf4 {[%clk 0:03:00]}  Nc6 {[%clk 0:02:50]} 12. a3 {[%clk 0:02:57]}  c4 {[%clk 0:02:41]} 13. g3 {[%clk 0:02:53]}  h5 {[%clk 0:02:36]} 14. h4 {[%clk 0:02:53]}  g6 {[%clk 0:02:33]} 15. Nh3 {[%clk 0:02:53]}  Qc7 {[%clk 0:02:19]} 16. Qc2 {[%clk 0:02:47]}  O-O-O {[%clk 0:02:18]} 17. Bf4 {[%clk 0:02:46]}  Kb7 {[%clk 0:02:17]} 18. Rfe1 {[%clk 0:02:46]}  Na5 {[%clk 0:02:18]} 19. Bg5 {[%clk 0:02:45]}  Nc6 {[%clk 0:02:15]} 20. Nf4 {[%clk 0:02:44]}  Rdf8 {[%clk 0:02:10]} 21. Kg2 {[%clk 0:02:44]}  Qd8 {[%clk 0:02:03]} 22. Re3 {[%clk 0:02:42]}  Qe8 {[%clk 0:01:58]} 23. Rae1 {[%clk 0:02:40]}  Bxg5 {[%clk 0:01:45]} 24. Nxg5 {[%clk 0:02:40]}  Ne7 {[%clk 0:01:46]} 25. Rf3 {[%clk 0:02:35]}  Nf5 {[%clk 0:01:44]} 26. Kg1 {[%clk 0:02:35]}  Qe7 {[%clk 0:01:43]} 27. Ng2 {[%clk 0:02:35]}  Nb8 {[%clk 0:01:43]} 28. Ne3 {[%clk 0:02:34]}  Nc6 {[%clk 0:01:37]} 29. Nxf5 {[%clk 0:02:33]}  gxf5 {[%clk 0:01:36]} 30. Qd1 {[%clk 0:02:23]}  Rfg8 {[%clk 0:01:36]} 31. Rf4 {[%clk 0:02:23]}  Qd7 {[%clk 0:01:34]} 32. Kh2 {[%clk 0:02:22]}  Rg7 {[%clk 0:01:34]} 33. Nh3 {[%clk 0:02:16]}  Ne7 {[%clk 0:01:32]} 34. Rf3 {[%clk 0:02:14]}  Ng6 {[%clk 0:01:32]} 35. Rfe3 {[%clk 0:02:11]}  Rhg8 {[%clk 0:01:28]} 36. f4 {[%clk 0:02:03]}  Rh8 {[%clk 0:01:27]} 37. Ng5 {[%clk 0:02:03]}  Ne7 {[%clk 0:01:21]} 38. a4 {[%clk 0:02:01]}  Nc6 {[%clk 0:01:21]} 39. Qc2 {[%clk 0:01:56]}  Na5 {[%clk 0:01:21]} 40. Ra1 {[%clk 0:01:56]}  Rgg8 {[%clk 0:01:07]} 41. Ree1 {[%clk 0:01:56]}  Rc8 {[%clk 0:01:07]} 42. Ra3 {[%clk 0:01:56]}  Ka8 {[%clk 0:01:06]} 43. Kg2 {[%clk 0:01:56]}  Qe7 {[%clk 0:01:06]} 44. Kf2 {[%clk 0:01:55]}  Qd7 {[%clk 0:01:06]} 45. Rea1 {[%clk 0:01:53]}  Rc7 {[%clk 0:01:06]} 46. Nf3 {[%clk 0:01:52]}  Qe7 {[%clk 0:01:05]} 47. Nd2 {[%clk 0:01:52]}  Rg8 {[%clk 0:01:05]} 48. Rg1 {[%clk 0:01:52]}  Qf8 {[%clk 0:01:04]} 49. Qd1 {[%clk 0:01:51]}  Rh8 {[%clk 0:01:03]} 50. Ra2 {[%clk 0:01:50]}  Qg7 {[%clk 0:01:04]} 51. Qc2 {[%clk 0:01:46]}  Qg4 {[%clk 0:01:02]} 52. Nf3 {[%clk 0:01:46]}  Qg8 {[%clk 0:01:03]} 53. Ng5 {[%clk 0:01:46]}  Qf8 {[%clk 0:01:04]} 54. Ra3 {[%clk 0:01:46]}  Qe7 {[%clk 0:01:04]} 55. Rga1 {[%clk 0:01:47]}  Qd7 {[%clk 0:01:04]} 56. Rd1 {[%clk 0:01:45]}  Qe7 {[%clk 0:01:04]} 57. Ke1 {[%clk 0:01:45]}  Qf8 {[%clk 0:01:04]} 58. Qe2 {[%clk 0:01:45]}  Qe7 {[%clk 0:01:04]} 59. Qf3 {[%clk 0:01:45]}  Kb8 {[%clk 0:01:04]} 60. Kf1 {[%clk 0:01:46]}  Qf8 {[%clk 0:01:04]} 61. Kg2 {[%clk 0:01:46]}  Qe7 {[%clk 0:01:05]} 62. Kh2 {[%clk 0:01:47]}  Qf8 {[%clk 0:01:05]} 63. Rg1 {[%clk 0:01:43]}  Qe7 {[%clk 0:01:05]} 64. Nh3 {[%clk 0:01:43]}  Qf8 {[%clk 0:01:05]} 65. Nf2 {[%clk 0:01:44]}  Qe7 {[%clk 0:00:57]} 66. Nd1 {[%clk 0:01:44]}  Qf8 {[%clk 0:00:56]} 67. Ne3 {[%clk 0:01:45]}  Nb3 {[%clk 0:00:50]} 68. Rxb3 {[%clk 0:01:40]}  cxb3 {[%clk 0:00:51]} 69. Qd1 {[%clk 0:01:41]}  Qc8 {[%clk 0:00:49]} 70. Qxb3 {[%clk 0:01:41]}  Qa6 {[%clk 0:00:50]} 71. Qc2 {[%clk 0:01:39]}  Rhc8 {[%clk 0:00:44]} 72. Kg2 {[%clk 0:01:28]}  Qb7 {[%clk 0:00:39]} 73. Kf2 {[%clk 0:01:24]}  Ka8 {[%clk 0:00:40]} 74. Qe2 {[%clk 0:01:21]}  Rh8 {[%clk 0:00:40]} 75. Ra1 {[%clk 0:01:21]}  a5 {[%clk 0:00:40]} 76. Nc2 {[%clk 0:01:20]}  Qc8 {[%clk 0:00:33]} 77. Na3 {[%clk 0:01:20]}  Qg8 {[%clk 0:00:34]} 78. Nb5 {[%clk 0:01:21]}  Rd7 {[%clk 0:00:32]} 79. Nd6 {[%clk 0:01:21]}  Ka7 {[%clk 0:00:33]} 80. b4 {[%clk 0:01:19]}  Rxd6 {[%clk 0:00:17]} 81. exd6 {[%clk 0:01:19]}  Qd8 {[%clk 0:00:15]} 82. bxa5 {[%clk 0:01:18]}  bxa5 {[%clk 0:00:16]} 83. Rb1 {[%clk 0:01:16]}  Qxd6 {[%clk 0:00:15]} 84. Qb5 {[%clk 0:01:16]}  Qa6 {[%clk 0:00:15]} 85. Qc5+ {[%clk 0:01:13]}  Ka8 {[%clk 0:00:16]} 86. Rb6 {[%clk 0:01:14]}  Qa7 {[%clk 0:00:15]} 87. Qc6+ {[%clk 0:01:14]} 1-0


[Site "https://www.chess.com"]

[Event "Titled Tuesday Blitz June 6 Late 2023"]
[White "Bluebaum, Matthias"]
[Black "Indjic, Aleksandar"]
[WhiteFideId "24651516"]
[BlackFideId "911925"]
[WhiteElo "2639"]
[BlackElo "2614"]
[Result "0-1"]
[Round "7"]
[TimeControl "180+2"]
[Date "2023.06.07"]
[WhiteClock "0:00:03"]
[BlackClock "0:00:13"]
[Board "15"]

1. d4 {[%clk 0:03:00]}  Nf6 {[%clk 0:03:00]} 2. c4 {[%clk 0:03:01]}  c5 {[%clk 0:03:01]} 3. d5 {[%clk 0:03:01]}  e6 {[%clk 0:03:02]} 4. Nc3 {[%clk 0:03:02]}  exd5 {[%clk 0:03:02]} 5. cxd5 {[%clk 0:03:02]}  d6 {[%clk 0:03:03]} 6. Nf3 {[%clk 0:03:03]}  g6 {[%clk 0:03:03]} 7. Bg5 {[%clk 0:03:04]}  a6 {[%clk 0:03:01]} 8. a4 {[%clk 0:03:03]}  h6 {[%clk 0:03:00]} 9. Bh4 {[%clk 0:03:04]}  g5 {[%clk 0:03:01]} 10. Bg3 {[%clk 0:03:04]}  Nh5 {[%clk 0:03:02]} 11. Nd2 {[%clk 0:03:05]}  Nd7 {[%clk 0:02:59]} 12. Nc4 {[%clk 0:03:05]}  Nxg3 {[%clk 0:02:58]} 13. hxg3 {[%clk 0:03:06]}  Nb6 {[%clk 0:02:58]} 14. Ne3 {[%clk 0:02:56]}  Bg7 {[%clk 0:02:49]} 15. Qc2 {[%clk 0:02:55]}  a5 {[%clk 0:02:29]} 16. Nf5 {[%clk 0:02:54]}  Bxf5 {[%clk 0:02:26]} 17. Qxf5 {[%clk 0:02:55]}  O-O {[%clk 0:02:20]} 18. e3 {[%clk 0:02:53]}  c4 {[%clk 0:02:20]} 19. Be2 {[%clk 0:02:45]}  Re8 {[%clk 0:02:19]} 20. O-O {[%clk 0:02:35]}  Rc8 {[%clk 0:02:19]} 21. Rab1 {[%clk 0:02:32]}  Rc5 {[%clk 0:02:16]} 22. Rfd1 {[%clk 0:02:31]}  Qe7 {[%clk 0:02:04]} 23. Bf3 {[%clk 0:02:21]}  Bxc3 {[%clk 0:02:01]} 24. bxc3 {[%clk 0:02:22]}  Nxa4 {[%clk 0:02:01]} 25. Qc2 {[%clk 0:02:04]}  b5 {[%clk 0:02:02]} 26. Ra1 {[%clk 0:02:04]}  Qf6 {[%clk 0:01:57]} 27. Rd4 {[%clk 0:02:04]}  Ra8 {[%clk 0:01:50]} 28. Be4 {[%clk 0:01:55]}  Re8 {[%clk 0:01:26]} 29. Bf3 {[%clk 0:01:44]}  Kg7 {[%clk 0:01:26]} 30. Be2 {[%clk 0:01:40]}  Ra8 {[%clk 0:01:20]} 31. Bxc4 {[%clk 0:01:38]}  Nb6 {[%clk 0:01:15]} 32. Ba2 {[%clk 0:01:22]}  b4 {[%clk 0:01:14]} 33. Bb1 {[%clk 0:01:21]}  Rxc3 {[%clk 0:01:10]} 34. Qh7+ {[%clk 0:01:21]}  Kf8 {[%clk 0:01:11]} 35. Bd3 {[%clk 0:01:07]}  b3 {[%clk 0:01:09]} 36. Rb1 {[%clk 0:01:07]}  a4 {[%clk 0:01:09]} 37. f4 {[%clk 0:01:08]}  g4 {[%clk 0:00:57]} 38. Rb4 {[%clk 0:00:40]}  Nd7 {[%clk 0:00:57]} 39. Bb5 {[%clk 0:00:28]}  Rb8 {[%clk 0:00:50]} 40. Rxa4 {[%clk 0:00:05]}  Rxb5 {[%clk 0:00:50]} 41. Ra7 {[%clk 0:00:06]}  Nb6 {[%clk 0:00:28]} 42. Rb7 {[%clk 0:00:05]}  Rc8 {[%clk 0:00:26]} 43. Kh2 {[%clk 0:00:05]}  b2 {[%clk 0:00:26]} 44. e4 {[%clk 0:00:05]}  Rb4 {[%clk 0:00:13]} 45. e5 {[%clk 0:00:06]}  Qg7 {[%clk 0:00:11]} 46. Qf5 {[%clk 0:00:06]}  Qg6 {[%clk 0:00:11]} 47. Qxg6 {[%clk 0:00:02]}  fxg6 {[%clk 0:00:12]} 48. e6 {[%clk 0:00:02]}  Nxd5 {[%clk 0:00:12]} 49. Rf7+ {[%clk 0:00:02]}  Kg8 {[%clk 0:00:11]} 50. Rd7 {[%clk 0:00:03]}  Nc3 {[%clk 0:00:11]} 51. Rxb2 {[%clk 0:00:02]}  Rxb2 {[%clk 0:00:10]} 52. e7 {[%clk 0:00:03]}  Re8 {[%clk 0:00:10]} 53. Rxd6 {[%clk 0:00:03]}  Kf7 {[%clk 0:00:11]} 54. f5 {[%clk 0:00:03]}  gxf5 {[%clk 0:00:10]} 55. Rxh6 {[%clk 0:00:03]}  Ne4 {[%clk 0:00:11]} 56. Rh7+ {[%clk 0:00:03]}  Kf6 {[%clk 0:00:12]} 57. Rh6+ {[%clk 0:00:03]}  Kxe7 {[%clk 0:00:12]} 58. Rh7+ {[%clk 0:00:03]}  Kf6 {[%clk 0:00:12]} 59. Rh6+ {[%clk 0:00:03]}  Kg5 {[%clk 0:00:12]} 60. Rh7 {[%clk 0:00:04]}  Re6 {[%clk 0:00:12]} 61. Rg7+ {[%clk 0:00:03]}  Rg6 {[%clk 0:00:12]} 62. Rc7 {[%clk 0:00:01]}  Rh6+ {[%clk 0:00:12]} 63. Kg1 {[%clk 0:00:02]}  Rb1+ {[%clk 0:00:12]} 64. Rc1 {[%clk 0:00:03]}  Rxc1# {[%clk 0:00:13]} 0-1


[Site "https://www.chess.com"]

[Event "Titled Tuesday Blitz June 6 Late 2023"]
[White "Matlakov, Maxim"]
[Black "Yanchenko, Roman"]
[WhiteFideId "4168003"]
[BlackFideId "4137329"]
[WhiteElo "2666"]
[BlackElo "2491"]
[Result "1-0"]
[Round "7"]
[TimeControl "180+2"]
[Date "2023.06.07"]
[WhiteClock "0:00:53"]
[BlackClock "0:00:07"]
[Board "16"]

1. Nf3 {[%clk 0:02:59]}  d5 {[%clk 0:03:00]} 2. d4 {[%clk 0:02:58]}  Nf6 {[%clk 0:03:00]} 3. Bg5 {[%clk 0:02:58]}  Bf5 {[%clk 0:03:00]} 4. e3 {[%clk 0:02:55]}  c6 {[%clk 0:02:59]} 5. c4 {[%clk 0:02:52]}  Qb6 {[%clk 0:02:58]} 6. Qc1 {[%clk 0:02:49]}  Bxb1 {[%clk 0:02:54]} 7. Rxb1 {[%clk 0:02:47]}  Ne4 {[%clk 0:02:54]} 8. Bd3 {[%clk 0:02:44]}  e6 {[%clk 0:02:49]} 9. Bxe4 {[%clk 0:02:27]}  dxe4 {[%clk 0:02:49]} 10. Nd2 {[%clk 0:02:28]}  Bb4 {[%clk 0:02:49]} 11. O-O {[%clk 0:02:27]}  Bxd2 {[%clk 0:02:38]} 12. Qxd2 {[%clk 0:02:28]}  Nd7 {[%clk 0:02:37]} 13. Qc2 {[%clk 0:02:27]}  Qa5 {[%clk 0:02:35]} 14. Bf4 {[%clk 0:02:23]}  Qf5 {[%clk 0:02:34]} 15. Bd6 {[%clk 0:02:20]}  Qg6 {[%clk 0:02:26]} 16. b4 {[%clk 0:02:18]}  h5 {[%clk 0:02:21]} 17. b5 {[%clk 0:02:18]}  h4 {[%clk 0:02:18]} 18. bxc6 {[%clk 0:02:17]}  bxc6 {[%clk 0:02:18]} 19. h3 {[%clk 0:02:15]}  Rh5 {[%clk 0:02:16]} 20. Kh1 {[%clk 0:01:58]}  e5 {[%clk 0:02:03]} 21. c5 {[%clk 0:01:44]}  exd4 {[%clk 0:01:40]} 22. exd4 {[%clk 0:01:45]}  Rg5 {[%clk 0:01:40]} 23. Rfe1 {[%clk 0:01:41]}  f5 {[%clk 0:01:40]} 24. f3 {[%clk 0:01:36]}  Nf6 {[%clk 0:01:32]} 25. Rb7 {[%clk 0:01:33]}  Rd8 {[%clk 0:00:47]} 26. Qb3 {[%clk 0:01:11]}  Nd5 {[%clk 0:00:39]} 27. fxe4 {[%clk 0:01:03]}  fxe4 {[%clk 0:00:33]} 28. Qa4 {[%clk 0:01:02]}  Rxd6 {[%clk 0:00:31]} 29. cxd6 {[%clk 0:01:03]}  Qxd6 {[%clk 0:00:29]} 30. Qxa7 {[%clk 0:00:59]}  Ne7 {[%clk 0:00:07]} 31. Rxe4 {[%clk 0:00:57]}  Qg3 {[%clk 0:00:07]} 32. Rexe7+ {[%clk 0:00:53]}  Kf8 {[%clk 0:00:07]} 33. Qa8+ {[%clk 0:00:53]}  Qb8 {[%clk 0:00:07]} 34. Qxb8# {[%clk 0:00:53]} 1-0


[Site "https://www.chess.com"]

[Event "Titled Tuesday Blitz June 6 Late 2023"]
[White "Rosen, Eric"]
[Black "Ibarra Jerez, Jose Carlos"]
[WhiteFideId "2032562"]
[BlackFideId "2226332"]
[WhiteElo "2331"]
[BlackElo "2631"]
[Result "0-1"]
[Round "7"]
[TimeControl "180+2"]
[Date "2023.06.07"]
[WhiteClock "0:00:02"]
[BlackClock "0:00:46"]
[Board "18"]

1. d4 {[%clk 0:03:00]}  Nf6 {[%clk 0:02:57]} 2. Bf4 {[%clk 0:03:01]}  d5 {[%clk 0:02:55]} 3. e3 {[%clk 0:03:01]}  c5 {[%clk 0:02:56]} 4. Nf3 {[%clk 0:03:02]}  Nc6 {[%clk 0:02:56]} 5. Nbd2 {[%clk 0:03:02]}  e6 {[%clk 0:02:50]} 6. c3 {[%clk 0:03:02]}  cxd4 {[%clk 0:02:50]} 7. exd4 {[%clk 0:03:02]}  Nh5 {[%clk 0:02:50]} 8. Be3 {[%clk 0:03:02]}  Bd6 {[%clk 0:02:50]} 9. Ne5 {[%clk 0:03:03]}  g6 {[%clk 0:02:50]} 10. g4 {[%clk 0:03:03]}  Ng7 {[%clk 0:02:44]} 11. h4 {[%clk 0:03:03]}  Nxe5 {[%clk 0:02:43]} 12. dxe5 {[%clk 0:03:02]}  Bxe5 {[%clk 0:02:44]} 13. h5 {[%clk 0:03:03]}  O-O {[%clk 0:02:40]} 14. Nf3 {[%clk 0:03:03]}  Bf6 {[%clk 0:02:36]} 15. Qd2 {[%clk 0:02:19]}  d4 {[%clk 0:02:35]} 16. cxd4 {[%clk 0:02:15]}  b6 {[%clk 0:02:34]} 17. Ne5 {[%clk 0:02:15]}  Bb7 {[%clk 0:02:33]} 18. Rh3 {[%clk 0:02:12]}  Rc8 {[%clk 0:02:21]} 19. Be2 {[%clk 0:02:03]}  Be4 {[%clk 0:02:18]} 20. f3 {[%clk 0:01:28]}  Bb7 {[%clk 0:02:09]} 21. Rd1 {[%clk 0:01:18]}  Qd5 {[%clk 0:02:04]} 22. b3 {[%clk 0:01:11]}  Rfd8 {[%clk 0:01:59]} 23. Bc4 {[%clk 0:01:03]}  Qd6 {[%clk 0:01:57]} 24. hxg6 {[%clk 0:01:00]}  fxg6 {[%clk 0:01:54]} 25. Bf4 {[%clk 0:00:43]}  Qe7 {[%clk 0:01:22]} 26. Qh2 {[%clk 0:00:37]}  Ne8 {[%clk 0:01:22]} 27. g5 {[%clk 0:00:17]}  Bxe5 {[%clk 0:01:12]} 28. Bxe5 {[%clk 0:00:17]}  Bd5 {[%clk 0:01:13]} 29. Bd3 {[%clk 0:00:17]}  Qf7 {[%clk 0:01:00]} 30. f4 {[%clk 0:00:15]}  Nd6 {[%clk 0:00:57]} 31. Kd2 {[%clk 0:00:02]}  Ne4+ {[%clk 0:00:53]} 32. Bxe4 {[%clk 0:00:02]}  Bxe4 {[%clk 0:00:54]} 33. Ke3 {[%clk 0:00:02]}  Rc3+ {[%clk 0:00:53]} 34. Kd2 {[%clk 0:00:02]}  Rc2+ {[%clk 0:00:53]} 35. Ke3 {[%clk 0:00:02]}  Rxh2 {[%clk 0:00:53]} 36. Rxh2 {[%clk 0:00:03]}  Bb7 {[%clk 0:00:49]} 37. Rc1 {[%clk 0:00:03]}  Rd7 {[%clk 0:00:48]} 38. Rhc2 {[%clk 0:00:02]}  Qf5 {[%clk 0:00:47]} 39. Rc7 {[%clk 0:00:01]}  Qe4+ {[%clk 0:00:46]} 40. Kd2 {[%clk 0:00:02]}  Rxd4+ {[%clk 0:00:45]} 41. Bxd4 {[%clk 0:00:02]}  Qxd4+ {[%clk 0:00:46]} 0-1


[Site "https://www.chess.com"]

[Event "Titled Tuesday Blitz June 6 Late 2023"]
[White "Zakhartsov, Vladimir"]
[Black "Martic, Ivan"]
[WhiteFideId "4145097"]
[BlackFideId "929301"]
[WhiteElo "2508"]
[BlackElo "2346"]
[Result "1/2-1/2"]
[Round "7"]
[TimeControl "180+2"]
[Date "2023.06.07"]
[WhiteClock "0:00:04"]
[BlackClock "0:00:13"]
[Board "19"]

1. d4 {[%clk 0:02:57]}  Nf6 {[%clk 0:02:58]} 2. c4 {[%clk 0:02:57]}  g6 {[%clk 0:02:59]} 3. Nc3 {[%clk 0:02:56]}  Bg7 {[%clk 0:02:57]} 4. e4 {[%clk 0:02:52]}  d6 {[%clk 0:02:58]} 5. h3 {[%clk 0:02:52]}  O-O {[%clk 0:02:57]} 6. Be3 {[%clk 0:02:53]}  e5 {[%clk 0:02:56]} 7. d5 {[%clk 0:02:52]}  Na6 {[%clk 0:02:55]} 8. g4 {[%clk 0:02:50]}  Nc5 {[%clk 0:02:40]} 9. f3 {[%clk 0:02:49]}  a5 {[%clk 0:02:40]} 10. Qd2 {[%clk 0:02:44]}  Bd7 {[%clk 0:02:31]} 11. Nge2 {[%clk 0:02:44]}  c6 {[%clk 0:02:27]} 12. h4 {[%clk 0:02:32]}  cxd5 {[%clk 0:02:15]} 13. cxd5 {[%clk 0:02:33]}  b5 {[%clk 0:02:15]} 14. h5 {[%clk 0:02:32]}  b4 {[%clk 0:02:14]} 15. Nd1 {[%clk 0:02:32]}  Bxg4 {[%clk 0:02:03]} 16. fxg4 {[%clk 0:02:20]}  Nfxe4 {[%clk 0:02:01]} 17. Qc2 {[%clk 0:02:18]}  Rc8 {[%clk 0:01:59]} 18. Bg2 {[%clk 0:02:15]}  f5 {[%clk 0:01:49]} 19. O-O {[%clk 0:02:07]}  Qh4 {[%clk 0:01:42]} 20. hxg6 {[%clk 0:01:59]}  Qxg4 {[%clk 0:01:36]} 21. gxh7+ {[%clk 0:01:58]}  Kh8 {[%clk 0:01:37]} 22. Nf2 {[%clk 0:01:54]}  Nxf2 {[%clk 0:01:32]} 23. Bxf2 {[%clk 0:01:53]}  f4 {[%clk 0:01:16]} 24. Kh2 {[%clk 0:00:43]}  Rf6 {[%clk 0:01:01]} 25. Bh3 {[%clk 0:00:41]}  Rh6 {[%clk 0:00:54]} 26. Ng1 {[%clk 0:00:41]}  f3 {[%clk 0:00:49]} 27. Bxc5 {[%clk 0:00:13]}  e4 {[%clk 0:00:49]} 28. Kh1 {[%clk 0:00:06]}  Be5 {[%clk 0:00:45]} 29. Qh2 {[%clk 0:00:07]}  Bxh2 {[%clk 0:00:44]} 30. Bxg4 {[%clk 0:00:07]}  Rxc5 {[%clk 0:00:38]} 31. Nh3 {[%clk 0:00:06]}  Bf4 {[%clk 0:00:28]} 32. Rae1 {[%clk 0:00:06]}  Rh4 {[%clk 0:00:22]} 33. Bf5 {[%clk 0:00:04]}  Rc2 {[%clk 0:00:17]} 34. Rxe4 {[%clk 0:00:01]}  Rh2+ {[%clk 0:00:15]} 35. Kg1 {[%clk 0:00:02]}  Rg2+ {[%clk 0:00:15]} 36. Kh1 {[%clk 0:00:03]}  Rh2+ {[%clk 0:00:14]} 37. Kg1 {[%clk 0:00:03]}  Rg2+ {[%clk 0:00:14]} 38. Kh1 {[%clk 0:00:04]}  Rh2+ {[%clk 0:00:13]} 1/2-1/2


[Site "https://www.chess.com"]

[Event "Titled Tuesday Blitz June 6 Late 2023"]
[White "Zhigalko, Sergei"]
[Black "Manukyan, Sargis A."]
[WhiteFideId "13502956"]
[BlackFideId "13303970"]
[WhiteElo "2626"]
[BlackElo "2187"]
[Result "1-0"]
[Round "7"]
[TimeControl "180+2"]
[Date "2023.06.07"]
[WhiteClock "0:00:12"]
[BlackClock "0:00:08"]
[Board "20"]

1. e4 {[%clk 0:03:00]}  c5 {[%clk 0:02:59]} 2. Nf3 {[%clk 0:03:00]}  d6 {[%clk 0:03:00]} 3. d4 {[%clk 0:03:00]}  cxd4 {[%clk 0:03:01]} 4. Qxd4 {[%clk 0:03:00]}  a6 {[%clk 0:02:57]} 5. Bc4 {[%clk 0:03:00]}  Nc6 {[%clk 0:02:56]} 6. Qd3 {[%clk 0:03:00]}  Nf6 {[%clk 0:02:57]} 7. Nc3 {[%clk 0:03:00]}  e6 {[%clk 0:02:58]} 8. Bf4 {[%clk 0:03:00]}  Be7 {[%clk 0:02:58]} 9. O-O-O {[%clk 0:03:00]}  e5 {[%clk 0:02:55]} 10. Bg5 {[%clk 0:03:00]}  Be6 {[%clk 0:02:52]} 11. Bxf6 {[%clk 0:02:59]}  gxf6 {[%clk 0:02:51]} 12. Nd5 {[%clk 0:02:52]}  b5 {[%clk 0:02:47]} 13. Bb3 {[%clk 0:02:52]}  Rc8 {[%clk 0:02:40]} 14. Kb1 {[%clk 0:02:51]}  Rg8 {[%clk 0:02:37]} 15. g3 {[%clk 0:02:43]}  Na5 {[%clk 0:02:35]} 16. Nh4 {[%clk 0:02:40]}  Nc4 {[%clk 0:02:14]} 17. Nf5 {[%clk 0:02:31]}  Bxf5 {[%clk 0:02:11]} 18. exf5 {[%clk 0:02:31]}  Nb6 {[%clk 0:02:09]} 19. Nb4 {[%clk 0:02:12]}  Rg4 {[%clk 0:01:35]} 20. f4 {[%clk 0:02:00]}  exf4 {[%clk 0:01:26]} 21. Nxa6 {[%clk 0:02:00]}  f3 {[%clk 0:01:02]} 22. Qxf3 {[%clk 0:01:40]}  Rgc4 {[%clk 0:00:46]} 23. Qb7 {[%clk 0:01:32]}  R4c6 {[%clk 0:00:39]} 24. Nb4 {[%clk 0:01:22]}  Rc5 {[%clk 0:00:21]} 25. Na6 {[%clk 0:01:20]}  R5c6 {[%clk 0:00:20]} 26. Rhe1 {[%clk 0:01:17]}  Kf8 {[%clk 0:00:21]} 27. Re2 {[%clk 0:01:03]}  Nd7 {[%clk 0:00:18]} 28. Nb4 {[%clk 0:00:56]}  Rc5 {[%clk 0:00:17]} 29. Nd3 {[%clk 0:00:50]}  Rxf5 {[%clk 0:00:14]} 30. Qe4 {[%clk 0:00:49]}  Rh5 {[%clk 0:00:13]} 31. Nf4 {[%clk 0:00:45]}  Rh6 {[%clk 0:00:09]} 32. Qd5 {[%clk 0:00:45]}  Qe8 {[%clk 0:00:07]} 33. Qxb5 {[%clk 0:00:33]}  Ne5 {[%clk 0:00:07]} 34. Qd5 {[%clk 0:00:26]}  Rc5 {[%clk 0:00:06]} 35. Qe4 {[%clk 0:00:26]}  f5 {[%clk 0:00:06]} 36. Qxf5 {[%clk 0:00:20]}  Kg7 {[%clk 0:00:06]} 37. Nd5 {[%clk 0:00:17]}  Qf8 {[%clk 0:00:06]} 38. Rf1 {[%clk 0:00:16]}  Rf6 {[%clk 0:00:05]} 39. Nxf6 {[%clk 0:00:15]}  Ng6 {[%clk 0:00:02]} 40. Qf2 {[%clk 0:00:13]}  d5 {[%clk 0:00:02]} 41. Nxd5 {[%clk 0:00:13]}  Rxc2 {[%clk 0:00:03]} 42. Bxc2 {[%clk 0:00:12]}  Bg5 {[%clk 0:00:03]} 43. Bxg6 {[%clk 0:00:11]}  hxg6 {[%clk 0:00:03]} 44. Qxf7+ {[%clk 0:00:11]}  Qxf7 {[%clk 0:00:04]} 45. Rxf7+ {[%clk 0:00:11]}  Kh6 {[%clk 0:00:05]} 46. Rf3 {[%clk 0:00:10]}  Bf6 {[%clk 0:00:06]} 47. Nxf6 {[%clk 0:00:10]}  Kg5 {[%clk 0:00:06]} 48. Re5+ {[%clk 0:00:11]}  Kh6 {[%clk 0:00:07]} 49. Ng4+ {[%clk 0:00:11]}  Kg7 {[%clk 0:00:07]} 50. Re7+ {[%clk 0:00:12]}  Kg8 {[%clk 0:00:08]} 51. Rc3 {[%clk 0:00:12]} 1-0


[Site "https://www.chess.com"]

[Event "Titled Tuesday Blitz June 6 Late 2023"]
[White "Veiga, Jose Francisco R P Neves"]
[Black "Baskakov, Egor"]
[WhiteFideId "1930087"]
[BlackFideId "24197866"]
[WhiteElo "2319"]
[BlackElo "2225"]
[Result "0-1"]
[Round "7"]
[TimeControl "180+2"]
[Date "2023.06.07"]
[WhiteClock "0:00:03"]
[BlackClock "0:00:34"]
[Board "26"]

1. e4 {[%clk 0:02:28]}  c5 {[%clk 0:02:59]} 2. Nf3 {[%clk 0:02:28]}  Nf6 {[%clk 0:03:00]} 3. Nc3 {[%clk 0:02:26]}  d5 {[%clk 0:02:59]} 4. exd5 {[%clk 0:02:24]}  Nxd5 {[%clk 0:03:00]} 5. Bb5+ {[%clk 0:02:24]}  Bd7 {[%clk 0:03:00]} 6. Bxd7+ {[%clk 0:02:23]}  Qxd7 {[%clk 0:03:01]} 7. O-O {[%clk 0:02:20]}  Nc6 {[%clk 0:03:01]} 8. d3 {[%clk 0:02:19]}  Nxc3 {[%clk 0:03:00]} 9. bxc3 {[%clk 0:02:18]}  g6 {[%clk 0:03:01]} 10. Rb1 {[%clk 0:02:18]}  Bg7 {[%clk 0:03:01]} 11. Bd2 {[%clk 0:02:16]}  O-O {[%clk 0:03:01]} 12. Re1 {[%clk 0:02:17]}  e5 {[%clk 0:03:01]} 13. Qe2 {[%clk 0:02:17]}  Rfe8 {[%clk 0:03:00]} 14. Qe4 {[%clk 0:02:17]}  h6 {[%clk 0:03:00]} 15. Qc4 {[%clk 0:02:02]}  Rac8 {[%clk 0:02:56]} 16. Be3 {[%clk 0:01:54]}  Nd4 {[%clk 0:02:51]} 17. cxd4 {[%clk 0:01:18]}  cxd4 {[%clk 0:02:52]} 18. Qb3 {[%clk 0:01:17]}  dxe3 {[%clk 0:02:52]} 19. Rxe3 {[%clk 0:01:18]}  b5 {[%clk 0:02:42]} 20. Rbe1 {[%clk 0:01:13]}  Qc7 {[%clk 0:02:21]} 21. R3e2 {[%clk 0:01:11]}  a6 {[%clk 0:02:21]} 22. Qd5 {[%clk 0:01:03]}  Qc6 {[%clk 0:02:15]} 23. Qb3 {[%clk 0:00:51]}  Qc3 {[%clk 0:02:03]} 24. Qb1 {[%clk 0:00:43]}  Re6 {[%clk 0:01:54]} 25. h3 {[%clk 0:00:36]}  Bf6 {[%clk 0:01:44]} 26. Nh2 {[%clk 0:00:30]}  h5 {[%clk 0:01:41]} 27. Nf1 {[%clk 0:00:29]}  Bd8 {[%clk 0:01:30]} 28. Ne3 {[%clk 0:00:23]}  Ba5 {[%clk 0:01:30]} 29. Rf1 {[%clk 0:00:19]}  Qd4 {[%clk 0:01:28]} 30. Qd1 {[%clk 0:00:17]}  Bb6 {[%clk 0:01:27]} 31. g3 {[%clk 0:00:15]}  Qa4 {[%clk 0:01:22]} 32. Qb1 {[%clk 0:00:16]}  h4 {[%clk 0:01:19]} 33. Nd5 {[%clk 0:00:16]}  Ba7 {[%clk 0:01:05]} 34. Kg2 {[%clk 0:00:16]}  Qd4 {[%clk 0:01:03]} 35. Ne3 {[%clk 0:00:16]}  f5 {[%clk 0:01:02]} 36. Qb3 {[%clk 0:00:15]}  Kf7 {[%clk 0:01:00]} 37. Rfe1 {[%clk 0:00:15]}  hxg3 {[%clk 0:00:56]} 38. fxg3 {[%clk 0:00:15]}  Qc3 {[%clk 0:00:56]} 39. Qd5 {[%clk 0:00:12]}  Bxe3 {[%clk 0:00:51]} 40. Rxe3 {[%clk 0:00:12]}  Qxc2+ {[%clk 0:00:51]} 41. R1e2 {[%clk 0:00:12]}  Qc6 {[%clk 0:00:49]} 42. Qxc6 {[%clk 0:00:13]}  Rcxc6 {[%clk 0:00:50]} 43. Rxe5 {[%clk 0:00:13]}  Rxe5 {[%clk 0:00:51]} 44. Rxe5 {[%clk 0:00:14]}  Rc2+ {[%clk 0:00:51]} 45. Kf3 {[%clk 0:00:15]}  Rxa2 {[%clk 0:00:51]} 46. Rc5 {[%clk 0:00:15]}  Rb2 {[%clk 0:00:44]} 47. Rc7+ {[%clk 0:00:13]}  Ke8 {[%clk 0:00:44]} 48. Rc6 {[%clk 0:00:14]}  a5 {[%clk 0:00:44]} 49. Rxg6 {[%clk 0:00:14]}  a4 {[%clk 0:00:45]} 50. Ra6 {[%clk 0:00:14]}  Rb3 {[%clk 0:00:42]} 51. Kf4 {[%clk 0:00:14]}  Rxd3 {[%clk 0:00:42]} 52. h4 {[%clk 0:00:14]}  a3 {[%clk 0:00:42]} 53. h5 {[%clk 0:00:14]}  b4 {[%clk 0:00:42]} 54. h6 {[%clk 0:00:15]}  Kf7 {[%clk 0:00:32]} 55. Kxf5 {[%clk 0:00:03]}  Rd5+ {[%clk 0:00:33]} 56. Ke4 {[%clk 0:00:03]}  Rb5 {[%clk 0:00:34]} 0-1


[Site "https://www.chess.com"]